fUSD/lending_fUSD_20250219
["ID","MTS","AMOUNT","RATE_DAILY","PERIOD"]
[353673635,1739987443327,-500.0,0.00011041,2]
[353673636,1739987443336,-500.0,0.00011041,2]
[353673637,1739987443349,-352.9234566,0.00011041,2]
[353673638,1739987443359,-500.0,0.00011041,2]
[353673639,1739987443369,-500.0,0.00011041,2]
[353673640,1739987443378,-500.0,0.00011041,2]
[353673641,1739987443388,-500.0,0.00011041,2]
[353673642,1739987443397,-500.0,0.00011041,2]
[353673643,1739987443407,-500.0,0.00011041,2]
[353673644,1739987443416,-500.0,0.00011041,2]
[353673646,1739987443425,-500.0,0.00011041,2]
[353673648,1739987443435,-500.0,0.00011041,2]
[353673650,1739987443444,-500.0,0.00011041,2]
[353673652,1739987443454,-500.0,0.00011041,2]
[353673655,1739987443463,-500.0,0.00011041,2]
[353673656,1739987443473,-423.67,0.00011041,2]
[353673660,1739987443483,-500.0,0.00011041,2]
[353673664,1739987443492,-500.0,0.00011041,2]
[353673668,1739987443501,-500.0,0.00011041,2]
[353673671,1739987443510,-500.0,0.00011041,2]
[353673674,1739987443520,-500.0,0.00011041,2]
[353673677,1739987443529,-150.65,0.00011041,2]
[353673680,1739987443538,-504.78926002,0.00011041,2]
[353673683,1739987443548,-500.0,0.00011041,2]
[353673686,1739987443557,-500.0,0.00011041,2]
[353673689,1739987443566,-500.0,0.00011041,2]
[353673692,1739987443576,-578.45,0.00011041,2]
[353673695,1739987443586,-500.0,0.00011041,2]
[353673698,1739987443596,-416.19266739,0.00011041,2]
[353673700,1739987443605,-508.87211195,0.00011041,2]
[353673702,1739987443614,-500.0,0.00011041,2]
[353673704,1739987443624,-500.0,0.00011041,2]
[353673705,1739987443633,-160.55,0.00011041,2]
[353673707,1739987443643,-280.0,0.00011041,2]
[353673709,1739987443653,-504.56440985,0.00011041,2]
[353673710,1739987443662,-500.0,0.00011041,2]
[353673711,1739987443672,-519.8,0.00011041,2]
[353673712,1739987443682,-509.89422423,0.00011041,2]
[353673714,1739987443692,-256.98,0.00011041,2]
[353673716,1739987443702,-515.23219962,0.00011041,2]
[353673718,1739987443711,-500.0,0.00011041,2]
[353673720,1739987443720,-500.0,0.00011041,2]
[353673722,1739987443731,-500.0,0.00011041,2]
[353673724,1739987443740,-301.21,0.00011041,2]
[353673726,1739987443750,-500.0,0.00011041,2]
[353673728,1739987443760,-500.0,0.00011041,2]
[353673730,1739987443769,-500.0,0.00011041,2]
[353673732,1739987443779,-813.48,0.00011041,2]
[353673734,1739987443788,-722.46,0.00011041,2]
[353673736,1739987443798,-1116.18,0.00011041,2]
[353673738,1739987443807,-500.0,0.00011041,2]
[353673740,1739987443816,-500.0,0.00011041,2]
[353673742,1739987443826,-500.0,0.00011041,2]
[353673744,1739987443835,-500.0,0.00011041,2]
[353673746,1739987443844,-500.0,0.00011041,2]
[353673748,1739987443854,-500.0,0.00011041,2]
[353673749,1739987443865,-1001.38,0.00011041,2]
[353673752,1739987443875,-500.0,0.00011041,2]
[353673753,1739987443884,-772.23,0.00011041,2]
[353673756,1739987443894,-1129.31,0.00011041,2]
[353673758,1739987443904,-894.25,0.00011041,2]
[353673759,1739987443914,-500.0,0.00011041,2]
[353673762,1739987443924,-1066.3,0.00011041,2]
[353673763,1739987443933,-500.0,0.00011041,2]
[353673766,1739987443943,-1207.63,0.00011041,2]
[353673768,1739987443954,-500.0,0.00011041,2]
[353673770,1739987443964,-523.8,0.00011041,2]
[353673772,1739987443974,-1475.98,0.00011041,2]
[353673774,1739987443983,-707.46,0.00011041,2]
[353673776,1739987443993,-500.0,0.00011041,2]
[353673778,1739987444003,-973.42,0.00011041,2]
[353673780,1739987444013,-577.01394756,0.00011041,2]
[353673782,1739987444023,-1708.57,0.00011041,2]
[353673784,1739987444033,-500.0,0.00011041,2]
[353673786,1739987444043,-500.0,0.00011041,2]
[353673788,1739987444053,-529.64788718,0.00011041,2]
[353673790,1739987444063,-758.41,0.00011041,2]
[353673792,1739987444073,-1055.55,0.00011041,2]
[353673794,1739987444083,-500.0,0.00011041,2]
[353673796,1739987444092,-943.78,0.00011041,2]
[353673798,1739987444102,-500.0,0.00011041,2]
[353673800,1739987444112,-500.0,0.00011041,2]
[353673802,1739987444121,-793.53,0.00011041,2]
[353673804,1739987444131,-829.08,0.00011041,2]
[353673806,1739987444141,-500.0,0.00011041,2]
[353673808,1739987444150,-628.54,0.00011041,2]
[353673810,1739987444160,-585.45,0.00011041,2]
[353673812,1739987444170,-673.29,0.00011041,2]
[353673814,1739987444180,-569.52,0.00011041,2]
[353673816,1739987444189,-500.0,0.00011041,2]
[353673818,1739987444199,-7470.500642,0.00011041,2]
[353673820,1739987444208,-500.0,0.00011041,2]
[353673822,1739987444216,-551.33,0.00011041,2]
[353673824,1739987444225,-241.012672,0.00011041,2]
[353673826,1739987444234,-500.0,0.00011041,2]
[353673827,1739987444241,-1188.83,0.00011041,2]
[353673829,1739987444248,-500.0,0.00011041,2]
[353673831,1739987444257,-788.62,0.00011041,2]
[353673833,1739987444266,-1971.73,0.00011041,2]
[353673835,1739987444277,-672.32,0.00011041,2]
[353673837,1739987444285,-500.0,0.00011041,2]
[353673839,1739987444295,-500.0,0.00011041,2]
[353673841,1739987444304,-500.0,0.00011041,2]
[353673843,1739987444314,-808.29,0.00011041,2]
[353673845,1739987444323,-500.0,0.00011041,2]
[353673847,1739987444332,-720.08,0.00011041,2]
[353673849,1739987444342,-566.48,0.00011041,2]
[353673851,1739987444354,-537.26,0.00011041,2]
[353673853,1739987444365,-840.91,0.00011041,2]
[353673855,1739987444374,-517.52,0.00011041,2]
[353673858,1739987444384,-662.15,0.00011041,2]
[353673859,1739987444393,-500.0,0.00011041,2]
[353673862,1739987444404,-1035.82,0.00011041,2]
[353673864,1739987444413,-1483.43,0.00011041,2]
[353673866,1739987444423,-8580.502287,0.00011041,2]
[353673867,1739987444433,-1154.98,0.00011041,2]
[353673869,1739987444443,-811.37,0.00011041,2]
[353673872,1739987444453,-896.95,0.00011041,2]
[353673874,1739987444463,-1939.26,0.00011041,2]
[353673876,1739987444472,-954.7,0.00011041,2]
[353673878,1739987444481,-1057.93,0.00011041,2]
[353673880,1739987444491,-1081.88,0.00011041,2]
[353673881,1739987444500,-893.96,0.00011041,2]
[353673884,1739987444509,-500.0,0.00011041,2]
[353673885,1739987444519,-1776.36,0.00011041,2]
[353673887,1739987444528,-408.13355094,0.00011041,2]
[353673889,1739987444537,-1231.15,0.00011041,2]
[353673892,1739987444547,-1082.49,0.00011041,2]
[353673894,1739987444556,-500.0,0.00011041,2]
[353673896,1739987444566,-500.0,0.00011041,2]
[353673898,1739987444575,-500.0,0.00011041,2]
[353673900,1739987444585,-1842.35,0.00011041,2]
[353673902,1739987444594,-500.0,0.00011041,2]
[353673904,1739987444604,-881.03,0.00011041,2]
[353673906,1739987444614,-711.42,0.00011041,2]
[353673908,1739987444623,-627.55014019,0.00011041,2]
[353673910,1739987444633,-819.54,0.00011041,2]
[353673911,1739987444642,-1127.42,0.00011041,2]
[353673913,1739987444652,-552.0818272,0.00011041,2]
[353673915,1739987444661,-744.32,0.00011041,2]
[353673918,1739987444671,-904.15,0.00011041,2]
[353673919,1739987444681,-500.0,0.00011041,2]
[353673922,1739987444691,-500.0,0.00011041,2]
[353673924,1739987444700,-1246.08,0.00011041,2]
[353673925,1739987444710,-1227.92,0.00011041,2]
[353673927,1739987444720,-500.0,0.00011041,2]
[353673930,1739987444730,-500.0,0.00011041,2]
[353673931,1739987444739,-664.94,0.00011041,2]
[353673933,1739987444749,-1901.67,0.00011041,2]
[353673935,1739987444758,-500.0,0.00011041,2]
[353673937,1739987444769,-1108.43,0.00011041,2]
[353673939,1739987444779,-500.0,0.00011041,2]
[353673942,1739987444789,-500.0,0.00011041,2]
[353673944,1739987444799,-1901.78,0.00011041,2]
[353673946,1739987444809,-500.0,0.00011041,2]
[353673948,1739987444820,-1290.72,0.00011041,2]
[353673950,1739987444831,-2211.03,0.00011041,2]
[353673952,1739987444840,-500.0,0.00011041,2]
[353673954,1739987444850,-812.42,0.00011041,2]
[353673956,1739987444859,-500.0,0.00011041,2]
[353673958,1739987444868,-500.0,0.00011041,2]
[353673960,1739987444878,-4591.13,0.00011041,2]
[353673962,1739987444887,-500.0,0.00011041,2]
[353673964,1739987444897,-500.0,0.00011041,2]
[353673966,1739987444906,-500.0,0.00011041,2]
[353673968,1739987444916,-1566.76,0.00011041,2]
[353673970,1739987444925,-955.62,0.00011041,2]
[353673972,1739987444935,-500.0,0.00011041,2]
[353673974,1739987444945,-500.0,0.00011041,2]
[353673976,1739987444959,-1307.0,0.00011041,2]
[353673978,1739987444968,-500.0,0.00011041,2]
[353673980,1739987444978,-1646.83,0.00011041,2]
[353673982,1739987444988,-500.0,0.00011041,2]
[353673984,1739987444997,-882.64,0.00011041,2]
[353673986,1739987445007,-513.95,0.00011041,2]
[353673988,1739987445017,-999.95,0.00011041,2]
[353673990,1739987445026,-1684.83,0.00011041,2]
[353673992,1739987445036,-1014.56,0.00011041,2]
[353673994,1739987445046,-500.0,0.00011041,2]
[353673996,1739987445057,-500.0,0.00011041,2]
[353673998,1739987445067,-500.0,0.00011041,2]
[353674000,1739987445076,-500.0,0.00011041,2]
[353674002,1739987445086,-737.79,0.00011041,2]
[353674004,1739987445095,-500.0,0.00011041,2]
[353674006,1739987445106,-500.0,0.00011041,2]
[353674008,1739987445116,-1140.37,0.00011041,2]
[353674010,1739987445126,-500.0,0.00011041,2]
[353674013,1739987445136,-1541.55,0.00011041,2]
[353674015,1739987445145,-993.33,0.00011041,2]
[353674016,1739987445155,-500.0,0.00011041,2]
[353674019,1739987445164,-752.42,0.00011041,2]
[353674020,1739987445174,-500.0,0.00011041,2]
[353674022,1739987445184,-500.0,0.00011041,2]
[353674024,1739987445194,-992.83,0.00011041,2]
[353674026,1739987445203,-500.0,0.00011041,2]
[353674029,1739987445212,-1423.73,0.00011041,2]
[353674031,1739987445222,-1072.75,0.00011041,2]
[353674033,1739987445232,-500.0,0.00011041,2]
[353674035,1739987445242,-991.44,0.00011041,2]
[353674037,1739987445252,-500.0,0.00011041,2]
[353674039,1739987445261,-734.87,0.00011041,2]
[353674041,1739987445272,-500.0,0.00011041,2]
[353674043,1739987445282,-506.11,0.00011041,2]
[353674045,1739987445292,-660.15,0.00011041,2]
[353674046,1739987445302,-500.0,0.00011041,2]
[353674048,1739987445312,-1154.52,0.00011041,2]
[353674051,1739987445322,-500.0,0.00011041,2]
[353674053,1739987445333,-500.0,0.00011041,2]
[353674054,1739987445343,-705.06,0.00011041,2]
[353674056,1739987445355,-500.0,0.00011041,2]
[353674058,1739987445365,-840.96,0.00011041,2]
[353674060,1739987445375,-472.7020275,0.00011041,2]
[353674063,1739987445384,-500.0,0.00011041,2]
[353674064,1739987445394,-1357.84,0.00011041,2]
[353674067,1739987445404,-500.0,0.00011041,2]
[353674069,1739987445414,-500.0,0.00011041,2]
[353674071,1739987445424,-728.08,0.00011041,2]
[353674073,1739987445434,-892.41,0.00011041,2]
[353674075,1739987445445,-1054.42,0.00011041,2]
[353674076,1739987445454,-1568.95,0.00011041,2]
[353674078,1739987445464,-671.12,0.00011041,2]
[353674079,1739987445474,-782.68,0.00011041,2]
[353674080,1739987445483,-914.52,0.00011041,2]
[353674081,1739987445493,-500.0,0.00011041,2]
[353674082,1739987445503,-500.0,0.00011041,2]
[353674083,1739987445513,-503.34841367,0.00011041,2]
[353674084,1739987445523,-1011.45,0.00011041,2]
[353674085,1739987445535,-1072.02,0.00011041,2]
[353674087,1739987445545,-500.0,0.00011041,2]
[353674089,1739987445554,-500.0,0.00011041,2]
[353674091,1739987445563,-500.0,0.00011041,2]
[353674093,1739987445572,-705.13,0.00011041,2]
[353674095,1739987445582,-1437.68,0.00011041,2]
[353674097,1739987445592,-500.0,0.00011041,2]
[353674099,1739987445601,-795.0,0.00011041,2]
[353674101,1739987445611,-644.23,0.00011041,2]
[353674103,1739987445621,-1015.54,0.00011041,2]
[353674105,1739987445630,-1039.88,0.00011041,2]
[353674107,1739987445640,-500.0,0.00011041,2]
[353674109,1739987445650,-500.0,0.00011041,2]
[353674111,1739987445659,-500.0,0.00011041,2]
[353674113,1739987445669,-866.14,0.00011041,2]
[353674115,1739987445678,-1003.06,0.00011041,2]
[353674117,1739987445688,-500.0,0.00011041,2]
[353674119,1739987445697,-500.0,0.00011041,2]
[353674121,1739987445707,-530.87,0.00011041,2]
[353674123,1739987445716,-500.0,0.00011041,2]
[353674125,1739987445726,-1740.48,0.00011041,2]
[353674127,1739987445736,-500.0,0.00011041,2]
[353674129,1739987445746,-500.0,0.00011041,2]
[353674131,1739987445755,-998.3,0.00011041,2]
[353674133,1739987445764,-500.0,0.00011041,2]
[353674135,1739987445774,-500.0,0.00011041,2]
[353674137,1739987445784,-1550.39,0.00011041,2]
[353674139,1739987445795,-3066.13,0.00011041,2]
[353674141,1739987445805,-512.06,0.00011041,2]
[353674143,1739987445815,-500.0,0.00011041,2]
[353674145,1739987445825,-500.0,0.00011041,2]
[353674147,1739987445834,-574.37,0.00011041,2]
[353674149,1739987445844,-200.0,0.00011068,2]
[353674151,1739987445855,-286.14444047,0.00011099,2]
[353674153,1739987445865,-604.77294542,0.00011099,2]
[353674155,1739987445875,-500.0,0.00011121,2]
[353674158,1739987445885,-503.08,0.00011122,2]
[353674160,1739987445894,-1035.21,0.00011122,2]
[353674162,1739987445904,-197.34,0.00011122,2]
[353674187,1739987445915,-500.0,0.00011123,2]
[353674192,1739987446148,-500.0,0.00011123,2]
[353674194,1739987446158,-500.0,0.00011123,2]
[353674196,1739987446167,-506.65,0.00011123,2]
[353674198,1739987446177,-500.0,0.00011123,2]
[353674200,1739987446186,-528.1636163,0.00011123,2]
[353674202,1739987446204,-500.0,0.00011123,2]
[353674204,1739987446213,-500.0,0.00011123,2]
[353674206,1739987446223,-179.86,0.00011123,2]
[353674208,1739987446232,-500.0,0.00011123,2]
[353674210,1739987446242,-500.0,0.00011123,2]
[353674212,1739987446252,-500.0,0.00011123,2]
[353674214,1739987446261,-332.07425204,0.00011123,2]
[353674216,1739987446274,-500.0,0.00011123,2]
[353674218,1739987446283,-436.06,0.00011123,2]
[353674220,1739987446293,-218.01226011,0.00011123,2]
[353674222,1739987446303,-500.0,0.00011123,2]
[353674224,1739987446314,-510.54,0.00011123,2]
[353674226,1739987446324,-442.49,0.00011123,2]
[353674228,1739987446333,-266.07,0.00011123,2]
[353674230,1739987446343,-500.0,0.00011123,2]
[353674232,1739987446356,-500.0,0.00011123,2]
[353674234,1739987446366,-500.0,0.00011123,2]
[353674236,1739987446376,-170.54,0.00011123,2]
[353674239,1739987446387,-528.71434032,0.00011123,2]
[353674241,1739987446396,-563.95,0.00011123,2]
[353674243,1739987446406,-500.0,0.00011123,2]
[353674245,1739987446416,-500.0,0.00011123,2]
[353674247,1739987446426,-500.0,0.00011123,2]
[353674249,1739987446435,-436.3,0.00011123,2]
[353674251,1739987446445,-500.0,0.00011123,2]
[353674253,1739987446455,-585.79,0.00011123,2]
[353674255,1739987446465,-500.0,0.00011123,2]
[353674258,1739987446475,-500.0,0.00011123,2]
[353674261,1739987446484,-588.08,0.00011123,2]
[353674264,1739987446493,-500.0,0.00011123,2]
[353674266,1739987446503,-500.0,0.00011123,2]
[353674268,1739987446512,-500.0,0.00011123,2]
[353674270,1739987446522,-500.0,0.00011123,2]
[353674272,1739987446532,-500.0,0.00011123,2]
[353674274,1739987446541,-500.0,0.00011123,2]
[353674276,1739987446550,-267.08,0.00011123,2]
[353674278,1739987446560,-500.0,0.00011123,2]
[353674280,1739987446570,-500.0,0.00011123,2]
[353674282,1739987446579,-500.0,0.00011123,2]
[353674284,1739987446589,-500.0,0.00011123,2]
[353674286,1739987446598,-813.48,0.00011123,2]
[353674288,1739987446608,-722.46,0.00011123,2]
[353674290,1739987446618,-1116.18,0.00011123,2]
[353674292,1739987446627,-500.0,0.00011123,2]
[353674294,1739987446636,-500.0,0.00011123,2]
[353674297,1739987446646,-214.52872408,0.00011123,2]
[353674298,1739987446655,-500.0,0.00011123,2]
[353674301,1739987446665,-500.0,0.00011123,2]
[353674303,1739987446674,-1001.38,0.00011123,2]
[353674304,1739987446683,-772.23,0.00011123,2]
[353674307,1739987446693,-1129.31,0.00011123,2]
[353674308,1739987446702,-894.25,0.00011123,2]
[353674311,1739987446712,-500.0,0.00011123,2]
[353674312,1739987446721,-1066.3,0.00011123,2]
[353674314,1739987446731,-500.0,0.00011123,2]
[353674317,1739987446740,-1207.63,0.00011123,2]
[353674319,1739987446750,-500.0,0.00011123,2]
[353674321,1739987446760,-523.8,0.00011123,2]
[353674323,1739987446770,-1475.98,0.00011123,2]
[353674325,1739987446779,-707.46,0.00011123,2]
[353674326,1739987446788,-500.0,0.00011123,2]
[353674329,1739987446798,-973.42,0.00011123,2]
[353674331,1739987446807,-1708.57,0.00011123,2]
[353674333,1739987446817,-601.78540161,0.00011123,2]
[353674335,1739987446826,-758.41,0.00011123,2]
[353674337,1739987446835,-1055.55,0.00011123,2]
[353674338,1739987446844,-500.0,0.00011123,2]
[353674340,1739987446854,-943.78,0.00011123,2]
[353674342,1739987446863,-500.0,0.00011123,2]
[353674344,1739987446873,-793.53,0.00011123,2]
[353674347,1739987446883,-829.08,0.00011123,2]
[353674349,1739987446892,-500.0,0.00011123,2]
[353674351,1739987446902,-628.54,0.00011123,2]
[353674353,1739987446911,-673.29,0.00011123,2]
[353674355,1739987446922,-585.45,0.00011123,2]
[353674357,1739987446931,-569.52,0.00011123,2]
[353674359,1739987446941,-500.0,0.00011123,2]
[353674360,1739987446950,-7470.500642,0.00011123,2]
[353674362,1739987446959,-500.0,0.00011123,2]
[353674364,1739987446969,-551.33,0.00011123,2]
[353674366,1739987446978,-241.012672,0.00011123,2]
[353674369,1739987446987,-500.0,0.00011123,2]
[353674371,1739987446996,-1188.83,0.00011123,2]
[353674373,1739987447006,-500.0,0.00011123,2]
[353674375,1739987447015,-788.62,0.00011123,2]
[353674377,1739987447024,-1971.73,0.00011123,2]
[353674379,1739987447034,-672.32,0.00011123,2]
[353674381,1739987447044,-500.0,0.00011123,2]
[353674383,1739987447053,-500.0,0.00011123,2]
[353674385,1739987447063,-808.29,0.00011123,2]
[353674387,1739987447073,-500.0,0.00011123,2]
[353674389,1739987447083,-720.08,0.00011123,2]
[353674391,1739987447092,-566.48,0.00011123,2]
[353674393,1739987447101,-932.0,0.00011123,2]
[353674395,1739987447111,-537.26,0.00011123,2]
[353674397,1739987447120,-840.91,0.00011123,2]
[353674399,1739987447130,-517.52,0.00011123,2]
[353674401,1739987447139,-662.15,0.00011123,2]
[353674402,1739987447148,-1035.82,0.00011123,2]
[353674403,1739987447157,-1483.43,0.00011123,2]
[353674404,1739987447167,-8580.502287,0.00011123,2]
[353674405,1739987447177,-1154.98,0.00011123,2]
[353674406,1739987447188,-811.37,0.00011123,2]
[353674407,1739987447209,-896.95,0.00011123,2]
[353674409,1739987447219,-1939.26,0.00011123,2]
[353674411,1739987447229,-954.7,0.00011123,2]
[353674412,1739987447239,-753.25,0.00011123,2]
[353674415,1739987447249,-1057.93,0.00011123,2]
[353674417,1739987447259,-1081.88,0.00011123,2]
[353674418,1739987447271,-893.96,0.00011123,2]
[353674421,1739987447281,-500.0,0.00011123,2]
[353674423,1739987447290,-1776.36,0.00011123,2]
[353674424,1739987447300,-1231.15,0.00011123,2]
[353674427,1739987447311,-500.0,0.00011123,2]
[353674428,1739987447320,-1082.49,0.00011123,2]
[353674431,1739987447330,-500.0,0.00011123,2]
[353674433,1739987447339,-1074.53,0.00011123,2]
[353674435,1739987447350,-500.0,0.00011123,2]
[353674437,1739987447360,-1842.35,0.00011123,2]
[353674438,1739987447370,-500.0,0.00011123,2]
[353674441,1739987447379,-1188.97,0.00011123,2]
[353674443,1739987447390,-881.03,0.00011123,2]
[353674445,1739987447400,-711.42,0.00011123,2]
[353674447,1739987447410,-819.54,0.00011123,2]
[353674449,1739987447419,-1127.42,0.00011123,2]
[353674451,1739987447429,-744.32,0.00011123,2]
[353674453,1739987447439,-500.0,0.00011123,2]
[353674455,1739987447449,-904.15,0.00011123,2]
[353674456,1739987447458,-500.0,0.00011123,2]
[353674458,1739987447467,-500.0,0.00011123,2]
[353674460,1739987447477,-744.25,0.00011123,2]
[353674463,1739987447486,-1246.08,0.00011123,2]
[353674465,1739987447495,-1227.92,0.00011123,2]
[353674467,1739987447505,-500.0,0.00011123,2]
[353674468,1739987447514,-500.0,0.00011123,2]
[353674470,1739987447524,-664.94,0.00011123,2]
[353674473,1739987447533,-1901.67,0.00011123,2]
[353674475,1739987447543,-500.0,0.00011123,2]
[353674477,1739987447553,-1108.43,0.00011123,2]
[353674479,1739987447562,-500.0,0.00011123,2]
[353674481,1739987447572,-990.17,0.00011123,2]
[353674483,1739987447583,-500.0,0.00011123,2]
[353674485,1739987447592,-1901.78,0.00011123,2]
[353674487,1739987447605,-500.0,0.00011123,2]
[353674489,1739987447614,-1290.72,0.00011123,2]
[353674491,1739987447623,-1736.87,0.00011123,2]
[353674493,1739987447632,-2211.03,0.00011123,2]
[353674495,1739987447642,-2335.41,0.00011123,2]
[353674497,1739987447651,-500.0,0.00011123,2]
[353674499,1739987447660,-812.42,0.00011123,2]
[353674501,1739987447670,-500.0,0.00011123,2]
[353674503,1739987447679,-500.0,0.00011123,2]
[353674505,1739987447688,-1527.63,0.00011123,2]
[353674507,1739987447697,-4591.13,0.00011123,2]
[353674509,1739987447706,-500.0,0.00011123,2]
[353674511,1739987447716,-500.0,0.00011123,2]
[353674513,1739987447725,-1000.0,0.00011123,2]
[353674515,1739987447735,-1566.76,0.00011123,2]
[353674517,1739987447744,-1821.09,0.00011123,2]
[353674519,1739987447753,-955.62,0.00011123,2]
[353674521,1739987447763,-1496.47,0.00011123,2]
[353674523,1739987447773,-500.0,0.00011123,2]
[353674525,1739987447783,-500.0,0.00011123,2]
[353674527,1739987447792,-1307.0,0.00011123,2]
[353674529,1739987447802,-1091.01,0.00011123,2]
[353674531,1739987447811,-500.0,0.00011123,2]
[353674533,1739987447821,-1646.83,0.00011123,2]
[353674535,1739987447830,-500.0,0.00011123,2]
[353674537,1739987447839,-882.64,0.00011123,2]
[353674539,1739987447849,-2442.27,0.00011123,2]
[353674542,1739987447859,-926.03,0.00011123,2]
[353674544,1739987447869,-513.95,0.00011123,2]
[353674546,1739987447878,-500.0,0.00011123,2]
[353674548,1739987447887,-999.95,0.00011123,2]
[353674550,1739987447897,-1684.83,0.00011123,2]
[353674552,1739987447906,-1014.56,0.00011123,2]
[353674554,1739987447915,-1071.28,0.00011123,2]
[353674555,1739987447925,-500.0,0.00011123,2]
[353674557,1739987447934,-1230.45,0.00011123,2]
[353674560,1739987447944,-788.39,0.00011123,2]
[353674561,1739987447953,-500.0,0.00011123,2]
[353674564,1739987447963,-500.0,0.00011123,2]
[353674566,1739987447972,-737.79,0.00011123,2]
[353674567,1739987447982,-500.0,0.00011123,2]
[353674569,1739987447991,-500.0,0.00011123,2]
[353674572,1739987448000,-500.0,0.00011123,2]
[353674574,1739987448010,-1140.37,0.00011123,2]
[353674576,1739987448019,-500.0,0.00011123,2]
[353674577,1739987448029,-1012.93,0.00011123,2]
[353674580,1739987448040,-1541.55,0.00011123,2]
[353674582,1739987448050,-993.33,0.00011123,2]
[353674584,1739987448059,-500.0,0.00011123,2]
[353674586,1739987448069,-947.02,0.00011123,2]
[353674588,1739987448079,-1322.03,0.00011123,2]
[353674589,1739987448088,-752.42,0.00011123,2]
[353674591,1739987448098,-500.0,0.00011123,2]
[353674593,1739987448109,-500.0,0.00011123,2]
[353674596,1739987448119,-1118.2,0.00011123,2]
[353674598,1739987448129,-992.83,0.00011123,2]
[353674599,1739987448138,-489.23032498,0.00011123,2]
[353674601,1739987448147,-1423.73,0.00011123,2]
[353674603,1739987448157,-1072.75,0.00011123,2]
[353674606,1739987448167,-500.0,0.00011123,2]
[353674607,1739987448176,-1110.66,0.00011123,2]
[353674609,1739987448185,-500.0,0.00011123,2]
[353674611,1739987448193,-991.44,0.00011123,2]
[353674613,1739987448201,-500.0,0.00011123,2]
[353674615,1739987448211,-734.87,0.00011123,2]
[353674617,1739987448220,-500.0,0.00011123,2]
[353674619,1739987448229,-1462.21,0.00011123,2]
[353674622,1739987448239,-506.11,0.00011123,2]
[353674623,1739987448248,-660.15,0.00011123,2]
[353674626,1739987448258,-500.0,0.00011123,2]
[353674628,1739987448268,-500.0,0.00011123,2]
[353674630,1739987448284,-1154.52,0.00011123,2]
[353674631,1739987448293,-500.0,0.00011123,2]
[353674634,1739987448303,-500.0,0.00011123,2]
[353674636,1739987448313,-705.06,0.00011123,2]
[353674638,1739987448323,-694.37,0.00011123,2]
[353674640,1739987448332,-500.0,0.00011123,2]
[353674642,1739987448341,-928.72,0.00011123,2]
[353674644,1739987448351,-840.96,0.00011123,2]
[353674646,1739987448362,-500.0,0.00011123,2]
[353674647,1739987448372,-1357.84,0.00011123,2]
[353674650,1739987448383,-338.31624606,0.00011123,2]
[353674652,1739987448392,-500.0,0.00011123,2]
[353674654,1739987448402,-500.0,0.00011123,2]
[353674656,1739987448411,-1600.63,0.00011123,2]